Cogmind - Beta 11 @@@ ROGUE MODE // 2022.04.10 @ 00:16:09 Player: RNGesus Result: Destroyed by Y-54 Guardian with Gatling Laser Performance ------------- Evolutions (3) 1500 Regions Visited (8) 1600 Robots Destroyed (148) 740 Value Destroyed (4399) 4399 Prototype IDs (7) 140 Alien Tech Used (0) 0 Bonus (286) 286 TOTAL SCORE: 8665 Bonus ------- High Alert Combat Kills 34 Follower Combat Kills 252 Cogmind --------- Core Integrity 0/700 Matter 51/300 Energy 95/150 System Corruption 5% Temperature Cool (6) Movement Walking (120) Location -7/Factory Parts ------- > --- POWER (1) -------- Micro Nuclear Core > --- PROPULSION (4) --- Carbon-fiber Leg > --- UTILITY (6) ------ Machine Analyzer Advanced Visual Processing Unit > --- WEAPON (2) ------- Cooled Pulse Rifle > --- INVENTORY (5) ---- Experimental Sensor Array Seismic Detector Trap Extractor (0/4) Cooled Pulse Rifle Rocket Launcher Peak State ------------ > --- POWER ------------ Improved Deuterium Engine > --- PROPULSION ------- Medium Treads Medium Treads Medium Treads Medium Treads > --- UTILITY ---------- Improved Heat Sink Huge Storage Unit Machine Analyzer Advanced Visual Processing Unit Improved Medium Armor Plating Hardlight Generator > --- WEAPON ----------- Advanced Beam Rifle Cooled Pulse Rifle > --- INVENTORY -------- Light Angular Momentum Engine Armored Treads Medium Treads Medium Treads Improved Heat Sink Huge Storage Unit Structural Scanner Experimental Sensor Array Seismic Detector Transport Network Coupler Core Analyzer Hardlight Generator Trap Extractor Cooled Pulse Rifle Beamcaster Beamcaster Gauss Rifle Gauss Rifle Gauss Rifle Gauss Rifle Rocket Launcher Rocket Launcher Heavy Mace Powered Hammer [Rating: 54] Favorites ----------- Power Light Angular Momentum Engine Engine Light Angular Momentum Engine Power Core Micro Nuclear Core Propulsion Light Treads Treads Light Treads Leg Carbon-fiber Leg Wheel Compact Wheel Utility Huge Storage Unit Device Seismic Detector Storage Huge Storage Unit Processor Advanced Visual Processing Unit Protection Hardened Light Armor Plating Weapon Improved Assault Rifle Energy Gun Beamcaster Ballistic Gun Improved Assault Rifle Launcher Rocket Launcher Impact Weapon Heavy Mace Build | -11 -10 -10 -9 -9 -9 -8 -8 -7 ------- Run | Scr Mat Min Mat Min Exi Min Mat Fac Slots Evolved 6 | . . . 2 . . . 2 2 Power . | . . . . . . . . . Propulsion 2 | . . . 1 . . . 1 . Utility 4 | . . . 1 . . . 1 2 Weapon . | . . . . . . . . . Parts Attached 119 | 6 8 2 26 6 . 2 39 30 Power 11 | 1 1 . 3 . . . 3 3 Engine 10 | 1 1 . 3 . . . 3 2 Core 1 | . . . . . . . . 1 Reactor . | . . . . . . . . . Propulsion 42 | 2 4 . 13 1 . 1 12 9 Treads 38 | 2 3 . 13 1 . 1 10 8 Leg 1 | . . . . . . . . 1 Wheel 3 | . 1 . . . . . 2 . Hover . | . . . . . . . . . Flight . | . . . . . . . . . Utility 24 | 1 2 . 3 1 . 1 9 7 Device 10 | . 1 . 1 1 . . 5 2 Storage 3 | 1 1 . . . . . . 1 Processor 4 | . . . . . . . 1 3 Hackware . | . . . . . . . . . Protection 7 | . . . 2 . . 1 3 1 Artifact . | . . . . . . . . . Weapon 42 | 2 1 2 7 4 . . 15 11 Energy Gun 17 | 1 . . . . . . 11 5 Energy Cannon . | . . . . . . . . . Ballistic Gun 13 | 1 1 1 5 2 . . . 3 Ballistic Cannon . | . . . . . . . . . Launcher 10 | . . 1 2 2 . . 2 3 Special Weapon . | . . . . . . . . . Impact Weapon 2 | . . . . . . . 2 . Slashing Weapon . | . . . . . . . . . Piercing Weapon . | . . . . . . . . . Special Melee Weapon . | . . . . . . . . . Unidentified Prototypes 3 | . . . 1 . . . 2 . Parts Lost 39 | . 2 . 3 1 . 1 16 16 Power 7 | . 1 . . . . . 3 3 Propulsion 19 | . . . 3 1 . . 7 8 Utility 8 | . . . . . . 1 4 3 Weapon 5 | . 1 . . . . . 2 2 Highest Loss Streak 13 | . 2 . 2 1 . 1 8 13 To Critical Strikes . | . . . . . . . . . Average Slot Usage (%) 95 | . 94 100 95 100 100 99 93 89 Engine 10 | . 13 14 11 11 11 11 8 6 Treads 29 | . 22 14 31 33 33 33 30 28 Wheel 1 | . 5 14 . . . . . . Device 12 | . 9 14 11 11 11 11 17 10 Storage 10 | . 14 14 11 11 11 11 9 6 Processor 2 | . . . . . . . . 17 Protection 6 | . . . 7 11 11 10 8 1 Energy Gun 5 | . 5 . . . . . 16 12 Ballistic Gun 15 | . 22 28 21 21 22 22 . . Naked Turns . | . . . . . . . . . Heaviest Build 109 | 11 89 89 101 101 101 101 109 109 Greatest Support 112 | 40 40 16 66 66 64 64 86 112 Greatest Overweight (x) 33 | . 5 5 5 1 1 1 33 3 Average Overweight (x) 1 | . 1 5 1 1 1 1 1 . Largest Inventory Capacity 25 | 8 25 25 25 25 25 25 25 25 Average Capacity 24 | 7 15 25 25 25 25 25 25 24 Most Carried 25 | 3 10 13 25 25 25 25 25 25 Average Carried 20 | 1 7 11 20 24 25 24 24 21 Final Capacity 25 | 8 25 25 25 25 25 25 25 5 Final Carried 25 | 3 10 13 25 25 25 25 20 5 Class Distribution -------------------- 67% | Mutant 32% | Scavenger-Mutant Dominant Class ---------------- Mutant | -10/Materials Mutant | -10/Mines Mutant | -9/Materials Mutant | -9/Mines Mutant | -9/Exiles Mutant | -8/Mines Scavenger-Mutant | -8/Materials Mutant | -7/Factory Resources | -11 -10 -10 -9 -9 -9 -8 -8 -7 ----------- Run | Scr Mat Min Mat Min Exi Min Mat Fac Matter Collected 2329 | 254 190 57 707 266 . 153 489 213 Remotely . | . . . . . . . . . Salvage Created 5351 | . 416 108 1305 382 . 309 1879 952 Parts 300 | . 32 7 90 26 . 14 87 44 Haulers Intercepted 12 | . 1 . 4 . . . 5 2 Recyclers Shooed 5 | . . . 1 . . . 2 2 Parts Field Recycled . | . . . . . . . . . Retrieved Matter . | . . . . . . . . . Parts Self-Destructed . | . . . . . . . . . Prevented . | . . . . . . . . . Kills | -11 -10 -10 -9 -9 -9 -8 -8 -7 ------- Run | Scr Mat Min Mat Min Exi Min Mat Fac Combat Hostiles Destroyed 116 | . 11 2 21 21 . 3 35 23 Guns 89 | . 11 1 21 13 . 3 24 16 AOE 23 | . . 1 . 8 . . 7 7 Classes Destroyed 19 | . 5 . 4 2 . . 4 4 Worker 9 | . . . 3 1 . . 4 1 Builder 2 | . 1 . . . . . . 1 Tunneler 4 | . . . 2 . . 2 . . Hauler 12 | . 1 . 4 . . . 5 2 Recycler 4 | . . . 2 . . 1 1 . Mechanic 3 | . 1 1 1 . . . . . Operator 1 | . . . . . . . 1 . Watcher 2 | . . . . . . . 2 . Swarmer 29 | . 6 . 7 8 . . 6 2 Grunt 49 | . 5 2 5 6 . 3 19 9 Duelist 1 | . . . . . . . 1 . Protector 2 | . . . . . . . . 2 Sentry 18 | . . . 9 . . . 8 1 Demolisher 2 | . . . . 2 . . . . Specialist 1 | . . . . . . . . 1 Hunter 5 | . . . . . . . . 5 Programmer 3 | . . . . . . . . 3 Heavy 1 | . . . . . . . 1 . Assembled 5 | . . . . 5 . . . . Best Kill Streak 11 | . 3 3 5 5 . 3 7 11 Combat Bots Only 8 | . 3 2 4 4 . 3 7 8 Max Kills in Single Turn 4 | . 2 2 2 4 . 1 3 3 Gunslinging 1 | . 1 . 1 . . . 1 . Exploded 3 | . . 1 . 3 . . 3 2 Melee . | . . . . . . . . . Uniques/NPCs Destroyed . | . . . . . . . . . Combat | -11 -10 -10 -9 -9 -9 -8 -8 -7 -------- Run | Scr Mat Min Mat Min Exi Min Mat Fac Damage Taken 9159 | . 453 162 1297 692 . 377 2662 3516 Core 1632 | . 65 10 106 108 . 89 544 710 Absorbed by Shields 16 | . . . . . . . 16 . Core Remaining (%) 48 | 100 . 70 . . . 24 1 . Volleys Fired 404 | . 34 7 92 38 . 16 138 79 Largest 2 | . 2 2 2 2 . 2 2 2 Hottest 150 | . 60 50 46 46 . 46 150 150 Shots Fired 738 | . 67 14 182 71 . 32 245 127 Gun 713 | . 67 13 180 66 . 32 241 114 Cannon . | . . . . . . . . . Launcher 25 | . . 1 2 5 . . 4 13 Special . | . . . . . . . . . Kinetic 355 | . 46 13 180 66 . 32 . 18 Thermal 358 | . 21 . . . . . 241 96 Explosive 25 | . . 1 2 5 . . 4 13 Electromagnetic . | . . . . . . . . . Robot Hit Streak 27 | . 10 9 10 14 . 15 11 27 Robot Miss Streak 6 | . 3 1 6 5 . 1 4 3 Penetration Max 1 | . . . . . . . . 1 Secondary Targets 15 | . 1 1 2 1 . . 6 4 Max Gunslinging Chain 1 | . 1 1 1 1 . . 1 1 Shots Hit Robots 489 | . 45 13 113 46 . 27 156 89 Core Hits 264 | . 23 9 48 29 . 12 67 76 Critical Kills 1 | . . . 1 . . . . . Critical Parts Destroyed 1 | . 1 . . . . . . . Critical Strikes 22 | . 1 . 2 . . . 14 5 Burn 19 | . . . . . . . 14 5 Destroy 3 | . 1 . 2 . . . . . Melee Attacks 6 | . . . . . . . 6 . Impact 6 | . . . . . . . 6 . Slashing . | . . . . . . . . . Piercing . | . . . . . . . . . Sneak Attacks . | . . . . . . . . . Combat Hostiles . | . . . . . . . . . Follow-up Attacks . | . . . . . . . . . Damage Inflicted 11825 | . 549 282 1553 1300 . 375 4265 3501 Guns 8444 | . 549 127 1553 701 . 375 3324 1815 Cannons . | . . . . . . . . . Explosions 3381 | . . 155 . 599 . . 941 1686 Melee . | . . . . . . . . . Ramming . | . . . . . . . . . Kinetic 3431 | . 361 127 1553 701 . 375 . 314 Thermal 5120 | . 188 . . . . . 3431 1501 Explosive 3274 | . . 155 . 599 . . 834 1686 Electromagnetic . | . . . . . . . . . Impact . | . . . . . . . . . Slashing . | . . . . . . . . . Piercing . | . . . . . . . . . Highest Corruption 5 | . . . . . . . 1 5 Average Corruption 1 | . . . . . . . 1 1 Corruption Purged . | . . . . . . . . . Corruption Blocked . | . . . . . . . . . Effects 26 | . . . . . . . 12 14 Message Errors 7 | . . . . . . . 3 4 Matter Fused 8 | . . . . . . . 5 3 Heat Flow Errors 1 | . . . . . . . . 1 Energy Discharges 4 | . . . . . . . 3 1 Parts Rejected 2 | . . . . . . . . 2 Data Loss (major) 2 | . . . . . . . 1 1 Misfires 1 | . . . . . . . . 1 Weapon Failures 1 | . . . . . . . . 1 Overload Shots . | . . . . . . . . . Overflow Damage 194 | . . . . 78 . . 104 12 Projectiles . | . . . . . . . . . Explosions 194 | . . . . 78 . . 104 12 Melee . | . . . . . . . . . Knockbacks . | . . . . . . . . . Impact . | . . . . . . . . . Kinetic . | . . . . . . . . . Secondary . | . . . . . . . . . Self-Inflicted Damage 128 | . . . 19 . . . 99 10 Shots 4 | . . . 1 . . . 2 1 Rammed . | . . . . . . . . . Targets Rammed . | . . . . . . . . . Kicked . | . . . . . . . . . Crushed . | . . . . . . . . . Highest Temperature 511 | . 30 11 26 53 . 148 511 448 Average Temperature 101 | . 14 8 6 23 . 79 127 154 Received Heat Transfer 3053 | . 96 93 483 322 . 243 991 825 Effects 16 | . . . . . . . 14 2 Shutdowns 4 | . . . . . . . 4 . Energy Bleed 2 | . . . . . . . 1 1 Interference 7 | . . . . . . . 7 . Matter Decay 2 | . . . . . . . 2 . Damage (minor) 1 | . . . . . . . . 1 Siege Activations . | . . . . . . . . . Robots Corrupted . | . . . . . . . . . Combat Hostiles . | . . . . . . . . . Parts Fried . | . . . . . . . . . Impact Corruptions . | . . . . . . . . . Robots Melted 4 | . . . . . . . 4 . Combat Hostiles 4 | . . . . . . . 4 . Parts Melted 23 | . . . . . . . 16 7 Heat Transferred 10540 | . 400 . . . . . 7069 3071 Parts Sabotaged . | . . . . . . . . . Parts Stolen . | . . . . . . . . . Parts Stripped . | . . . . . . . . . Power Chain Reactions . | . . . . . . . . . Missiles Intercepted . | . . . . . . . . . Alert | -11 -10 -10 -9 -9 -9 -8 -8 -7 ------- Run | Scr Mat Min Mat Min Exi Min Mat Fac Peak Influence 520 | . 211 179 410 270 . 80 520 317 Initial 159 | . . 8 . 159 . . . 147 Average 159 | . 79 68 215 143 . 19 281 104 Maximum Alert Level 2 | . 1 . 2 1 . . 2 1 Low Security (%) 64 | 100 97 100 46 88 . 100 8 90 Level 1 34 | . 2 . 52 11 . . 88 9 Level 2 . | . . . . . . . 2 . Level 3 . | . . . . . . . . . Level 4 . | . . . . . . . . . Level 5 . | . . . . . . . . . High Security . | . . . . . . . . . Max Security . | . . . . . . . . . Squads Dispatched 19 | . 3 1 4 . . . 6 5 Investigation 6 | . 3 . 3 . . . . . Extermination 2 | . . . . . . . . 2 Reinforcement 7 | . . . 1 . . . 4 2 Assault 1 | . . 1 . . . . . . Garrison 3 | . . . . . . . 2 1 Intercept . | . . . . . . . . . Searches Triggered . | . . . . . . . . . Construction Impeded 1 | . . . . . . . . 1 Haulers Reinforced 1 | . . . . . . . . 1 Active Scanning Responses . | . . . . . . . . . Cargo Convoy Interrupts 1 | . . . . . . . . 1 Stealth | -11 -10 -10 -9 -9 -9 -8 -8 -7 --------- Run | Scr Mat Min Mat Min Exi Min Mat Fac Distress Signals 16 | . 2 . 7 . . . 7 . Communications Jammed . | . . . . . . . . . Distress Signals . | . . . . . . . . . Times Spotted 198 | . 19 7 54 22 . 3 55 38 Peak Tracking Total 12 | . 4 4 6 4 . 3 6 12 Tactical Retreats 2 | . . . 1 1 . . . . Traps | -11 -10 -10 -9 -9 -9 -8 -8 -7 ------- Run | Scr Mat Min Mat Min Exi Min Mat Fac Traps Triggered 6 | . 4 . 1 . . . 1 . Indirectly . | . . . . . . . . . Trap Hack Attempts . | . . . . . . . . . Triggered . | . . . . . . . . . Disarmed . | . . . . . . . . . Reprogrammed . | . . . . . . . . . Reused . | . . . . . . . . . Traps Extracted . | . . . . . . . . . Installed . | . . . . . . . . . Triggered . | . . . . . . . . . Machines | -11 -10 -10 -9 -9 -9 -8 -8 -7 ---------- Run | Scr Mat Min Mat Min Exi Min Mat Fac Machines Disabled 9 | . . . 2 3 . . 3 1 Max in Single Turn 2 | . . . 1 2 . . 2 1 Machines Sabotaged . | . . . . . . . . . Garrisons Compromised . | . . . . . . . . . Overloaded Fab Kills . | . . . . . . . . . Hacking | -11 -10 -10 -9 -9 -9 -8 -8 -7 --------- Run | Scr Mat Min Mat Min Exi Min Mat Fac Machines Accessed 17 | . 3 . 5 . 1 . 7 1 Terminals 12 | . 2 . 4 . . . 5 1 Fabricators . | . . . . . . . . . Repair Stations 1 | . . . 1 . . . . . Recycling Units 2 | . 1 . . . . . 1 . Scanalyzers 1 | . . . . . . . 1 . Garrison Access . | . . . . . . . . . Total Hacks 56 | . 6 . 12 . 23 . 13 2 Successful 40 | . 6 . 4 . 23 . 7 . Failed 15 | . . . 7 . . . 6 2 Catastrophic 2 | . . . . . . . 2 . Database Lockouts 1 | . . . 1 . . . . . Manual 24 | . 5 . 11 . . . 6 2 Terminals 28 | . 5 . 10 . . . 11 2 Fabricators . | . . . . . . . . . Repair Stations 2 | . . . 2 . . . . . Recycling Units 2 | . 1 . . . . . 1 . Scanalyzers 1 | . . . . . . . 1 . Garrison Access . | . . . . . . . . . Terminal Hacks 36 | . 5 . 3 . 23 . 5 . Record 24 | . . . 1 . 23 . . . Part Schematic 3 | . 2 . 1 . . . . . Robot Analysis 2 | . 2 . . . . . . . Prototype ID Bank 1 | . . . . . . . 1 . Alert Level 2 | . 1 . . . . . 1 . Unreport Threat 1 | . . . . . . . 1 . Hauler Manifests 2 | . . . 1 . . . 1 . Zone Layout 1 | . . . . . . . 1 . Fabricator Hacks . | . . . . . . . . . Repair Station Hacks 1 | . . . 1 . . . . . Scan Component 1 | . . . 1 . . . . . Recycling Unit Hacks . | . . . . . . . . . Scanalyzer 1 | . . . . . . . 1 . Insert Component 1 | . . . . . . . 1 . Garrison Access Hacks . | . . . . . . . . . Unauthorized Hacks 2 | . 1 . . . . . 1 . Terminals . | . . . . . . . . . Fabricators . | . . . . . . . . . Repair Stations . | . . . . . . . . . Recycling Units 2 | . 1 . . . . . 1 . Mask 1 | . . . . . . . 1 . Tunnel 1 | . 1 . . . . . . . Scanalyzers . | . . . . . . . . . Garrison Access . | . . . . . . . . . Data Cores Recovered . | . . . . . . . . . Used . | . . . . . . . . . Hacking Detections 14 | . 2 . 6 . . . 5 1 Full Trace Events 2 | . . . 2 . . . . . Feedback Events . | . . . . . . . . . Feedback Blocked . | . . . . . . . . . Robot Schematics Acquired . | . . . . . . . . . Robots Built . | . . . . . . . . . Authchips . | . . . . . . . . . Time . | . . . . . . . . . Total Robot Build Rating . | . . . . . . . . . Part Schematics Acquired 3 | . 2 . 1 . . . . . Parts Built . | . . . . . . . . . Authchips . | . . . . . . . . . Time . | . . . . . . . . . Total Part Build Rating . | . . . . . . . . . Parts Repaired . | . . . . . . . . . Time . | . . . . . . . . . Parts Recycled . | . . . . . . . . . Recycled Matter . | . . . . . . . . . Retrieved Matter . | . . . . . . . . . Retrieved Components . | . . . . . . . . . Parts Scanalyzed . | . . . . . . . . . Part Schematics Acquired . | . . . . . . . . . Parts Damaged . | . . . . . . . . . Bothacking | -11 -10 -10 -9 -9 -9 -8 -8 -7 ------------ Run | Scr Mat Min Mat Min Exi Min Mat Fac Used RIF Installer . | . . . . . . . . . Robots Hacked . | . . . . . . . . . Non-combat . | . . . . . . . . . Combat . | . . . . . . . . . Robot Hacks Applied . | . . . . . . . . . Relay Couplers Released . | . . . . . . . . . Fabnet Peak Effective % . | . . . . . . . . . Robots Rewired . | . . . . . . . . . Allies Hacked . | . . . . . . . . . Hacks Repelled . | . . . . . . . . . Allies | -11 -10 -10 -9 -9 -9 -8 -8 -7 -------- Run | Scr Mat Min Mat Min Exi Min Mat Fac Total Allies 6 | . . 6 . . . . . . Largest Group 6 | . . 6 6 . . . . . Highest-Rated Group 116 | . . 116 116 . . . . . Highest-Rated Ally 31 | . . 31 31 . . . . . Total Orders . | . . . . . . . . . Ally Attacks 51 | . . 13 38 . . . . . Total Damage 711 | . . 192 519 . . . . . Kills 15 | . . 4 11 . . . . . Allies Corrupted . | . . . . . . . . . Allies Melted . | . . . . . . . . . Intel | -11 -10 -10 -9 -9 -9 -8 -8 -7 ------- Run | Scr Mat Min Mat Min Exi Min Mat Fac Robot Analysis Total 2 | . 2 . . . . . . . Derelict Logs Recovered 3 | . . 1 . 2 . . . . Drone Launches . | . . . . . . . . . Drone Recoveries . | . . . . . . . . . Exploration | -11 -10 -10 -9 -9 -9 -8 -8 -7 ------------- Run | Scr Mat Min Mat Min Exi Min Mat Fac Turns Passed 12949 | 79 1081 870 2948 1632 750 1520 2679 1390 Spaces Moved 5308 | 44 542 482 1128 665 327 628 890 602 Core 13 | 2 . . . . . . 3 8 Treads 4433 | 42 348 . 1014 665 327 628 816 593 Legs 1 | . . . . . . . . 1 Wheels 861 | . 194 482 114 . . . 71 . Hover . | . . . . . . . . . Flight . | . . . . . . . . . Fastest Speed 50 | 50 160 175 175 225 230 230 215 50 Average Speed 216 | 155 174 175 230 227 230 232 244 187 Slowest Speed 1700 | 160 480 175 240 230 230 233 1700 246 Overloaded Moves . | . . . . . . . . . Propulsion Burnouts . | . . . . . . . . . Robots Hopped . | . . . . . . . . . Cave-ins Triggered . | . . . . . . . . . Exploration Rate (%) 75 | 4 97 99 94 99 80 94 94 21 Regions Visited 8 Branch Regions 4 Pre-discovered Areas 3 | . 1 . . 1 1 . . . Known Exits Taken . | . . . . . . . . . Unknown Exits Taken 8 | 1 1 1 1 1 1 1 1 . Scrap Searched 4 | . . 1 . 2 . 1 . . Spaces Dug 47 | . . . 13 17 . . 17 . Terrain Destroyed 164 | . . 6 13 30 . . 71 44 Melee 4 | . . . . . . . 4 . Projectile . | . . . . . . . . . AOE 160 | . . 6 13 30 . . 67 44 Terrain Rammed . | . . . . . . . . . Walls Destroyed . | . . . . . . . . . Machines Disabled . | . . . . . . . . . Actions | -11 -10 -10 -9 -9 -9 -8 -8 -7 --------- Run | Scr Mat Min Mat Min Exi Min Mat Fac Total 6041 | 52 612 495 1311 714 326 655 1142 734 Wait 77 | . 21 2 19 1 . 4 25 5 Move 5300 | 43 541 481 1127 664 326 627 889 602 Hop . | . . . . . . . . . Pick Up 72 | 3 8 3 23 3 . 2 20 10 Fast Attach 28 | 6 2 . 2 . . . 13 5 Attach 29 | . 3 . 4 1 . 1 10 10 Detach 2 | . . . 1 . . . 1 . Swap 62 | . 3 2 20 5 . 1 16 15 Drop 59 | . . . 23 2 . 2 24 8 Fire 404 | . 34 7 92 38 . 16 138 79 Melee 6 | . . . . . . . 6 . Ram . | . . . . . . . . . Kick . | . . . . . . . . . Crush . | . . . . . . . . . Escape Stasis . | . . . . . . . . . Rewire 2 | . . . . . . 2 . . Trap . | . . . . . . . . . Miscellaneous . | . . . . . . . . . Route ------- -11/Scrapyard -10/Materials (discovered 4 exits: *Mat x3 / [*Min]) -10/Mines (discovered 2 exits: *Mat x2) -9/Materials (discovered 4 exits: *Mat x3 / [*Min]) -9/Mines (discovered 3 exits: *Mat x2 / *Exi) -9/Exiles (discovered 2 exits: [*Min x2]) -8/Mines (discovered 2 exits: *Mat x2) -8/Materials (discovered 3 exits: *Fac x3) -7/Factory (discovered 1 exit: [*Sto]) History --------- Turn | Location | Event 33 | -11/Scrapyard | Discovered new exit (range 15) 80 | -11/Scrapyard | Entered Materials 309 | -10/Materials | Build established: Mutant 376 | -10/Materials | Discovered new exit (range 15) 428 | -10/Materials | Discovered new exit (range 14) 605 | -10/Materials | Discovered new exit (range 8) 815 | -10/Materials | Discovered new exit (range 12) 1161 | -10/Materials | Entered Mines 1162 | -10/Mines | Met a Derelict testing a Signal Generator 1297 | -10/Mines | Found a damaged Exp. Sensor Array with a note attached 1300 | -10/Mines | Found Prototype Device 1441 | -10/Mines | Assisted by bots powering up and referring to "LRC-V3" 1726 | -10/Mines | Discovered new exit (range 6) 1979 | -10/Mines | Learned Materials terminal intel 1983 | -10/Mines | Discovered new exit (range 9) 2031 | -10/Mines | Entered Materials 2031 | -9/Materials | Accompanied by 6 allies 2031 | -9/Materials | Evolved 2 slots: Propulsion x1, Utility x1 2032 | -9/Materials | Loaded intel: 12 terminal locations 2036 | -9/Materials | Led the pair of lost Derelicts to an unsafe place 2472 | -9/Materials | Discovered new exit (range 12) 2908 | -9/Materials | Build established: Scavenger-Mutant 3156 | -9/Materials | Discovered new exit (range 12) 3799 | -9/Materials | Discovered new exit (range 7) 4224 | -9/Materials | Build established: Mutant 4252 | -9/Materials | Central database locked down 4434 | -9/Materials | Discovered new exit (range 12) 4979 | -9/Materials | Entered Mines 4987 | -9/Mines | Met a Derelict bent on vengeance 5013 | -9/Mines | Received a Rocket Launcher from a helpful Derelict 5051 | -9/Mines | Assembled infested the area 5591 | -9/Mines | Discovered new exit (range 3) 5651 | -9/Mines | Learned Materials security intel 5725 | -9/Mines | Discovered new exit (range 8) 5840 | -9/Mines | Core integrity fell below 50% 5950 | -9/Mines | Deemed a non-threat by the Exiles lab entrance 6602 | -9/Mines | Discovered new exit (range 5) 6611 | -9/Mines | Entered Exiles 6646 | -9/Exiles | Discovered new exit (range 15) 6713 | -9/Exiles | Met 8R-AWN 6745 | -9/Exiles | Met EX-HEX 6812 | -9/Exiles | Met EX-BIN 6855 | -9/Exiles | Met EX-DEC 6869 | -9/Exiles | Learned location of Zion (-6) 6992 | -9/Exiles | Visited The Gauntlet 7334 | -9/Exiles | Discovered new exit (range 14) 7361 | -9/Exiles | Entered Mines 8144 | -8/Mines | Discovered new exit (range 7) 8610 | -8/Mines | Discovered new exit (range 7) 8881 | -8/Mines | Entered Materials 8881 | -8/Materials | Evolved 2 slots: Propulsion x1, Utility x1 9111 | -8/Materials | Destroyed 7 combat bots 9280 | -8/Materials | Identified Exp. Sensor Array 9362 | -8/Materials | Build established: Scavenger-Mutant 9704 | -8/Materials | Discovered new exit (range 4) 10215 | -8/Materials | Discovered new exit (range 16) 11342 | -8/Materials | Discovered new exit (range 16) 11370 | -8/Materials | Core integrity fell below 50% 11394 | -8/Materials | Garrison activated, responded to threat 11397 | -8/Materials | Core integrity fell below 20% 11436 | -8/Materials | Lost 8 parts (1p3n3u1w) 11560 | -8/Materials | Entered Factory 11560 | -7/Factory | Evolved 2 slots: Utility x2 11960 | -7/Factory | Lost 3 parts (1p1n1u) 12395 | -7/Factory | Build established: Mutant 12457 | -7/Factory | Discovered new exit (range 4) 12807 | -7/Factory | Cargo convoy interrupted 12860 | -7/Factory | Garrison activated, responded to threat 12865 | -7/Factory | Destroyed 8 combat bots 12898 | -7/Factory | Core integrity fell below 50% 12921 | -7/Factory | Core integrity fell below 20% 12950 | -7/Factory | Destroyed by Y-54 Guardian with Gatling Laser Last Messages --------------- 12931_ U-05 Engineer lays Concrete. 12934_ K-01 Serf collects debris. 12934_ U-05 Engineer lays Concrete. 12935_ U-05 Engineer builds a Wall. 12936_ U-05 Engineer lays Concrete. 12937_ Acquired 37 matter. 12938_ U-05 Engineer lays Concrete. 12939_ Acquired Mic. Nuclear Core. 12940_ U-05 Engineer lays Concrete. 12941_ K-01 Serf collects debris. 12941_ U-05 Engineer lays Concrete. 12942_ K-01 Serf collects debris. 12942_ U-05 Engineer lays Concrete. 12943_ Acquired Carbon-fiber Leg. 12943_ U-05 Engineer lays Concrete. 12944_ K-01 Serf collects debris. 12944_ U-05 Engineer lays Concrete. 12946_ K-01 Serf collects debris. 12946_ U-05 Engineer lays Concrete. 12950_ K-01 Serf collects debris. Map ----- +----------------------------------------------------+ | ????????"""??"T"????????"""?"""?"""??????????????? | | ????????"""??"""????????"""?"""?"""??????????????? | | ????????????????????????"""?"""?"""??????????????? | | ?????????????????????????????????????????????????? | | ????????????????????????########?????????????????? | | ????????????????????????# | ?????????????????? | | ????????????????????????# """"??????????????? | | ????????????????""? ??"# """"??????????????? | | ????????????????"" "# """"??????????????? | | ????????????????""" "# ! """"??????????????? | | ???????????????#""" T """" ?????????????? | | ???????????????#""" ] " """" ?????????????? | | ???????????????+ "# """"??????????????? | | ???????????????# "#[[ ??????????????? | | ???????????????#] #[[ ?????????+?????? | | ?????????? ??## ####[ ??????? #?????? | | ?????????# ?# # #==!![[ ?????? #?????? | | ?????????# ####################### #?????? | | ?????????# % = !=*m*u[ #?????? | | ?????????# k%= *%![=[[=u * #?????? | | ?????????/ |% %|[][==![ %%[ #?????? | | ??????????? ?""" "" =!= ![![[=[=[%[ #?????? | | ?????????# ?""" """ w/ Y !! %==[ #?????? | | ?????????# ?""" """ "" !!####+# %! #?????? | | ?????????# ??"" "" " !% u; ## #?????? | | ?????????# "" "" " [@ !; """" #????? #?????? | | ?????????# % % # ""R"" #????????????? | | ?????????# """ """ """ # "" "" #????????????? | | ?????????# """ """ """ # #????????????? | | ?????????# """ """ """ # #????????????? | | ?????????# "" "" "" # #????????????? | | ?????????# "" "" "" # """" #????????????? | | ?????????# # """" #????????????? | | ????###??# """ """ """ # """" #????????????? | | ?####T ### """ """ """ #?""""? #????????????? | | ?# """ """ """ #? ???? #????????????? | | ?# "" "" "" #?""""???????????????? | | # "" "" "" +?""""???????????????? | | + #?""""???????????????? | | ?# #?""""???????????????? | | ?# ############# #????????????????????? | | ?# ######??????? #????????????????????? | | ?# """ "" # ! ?????? ????????????????????? | | ?# """ F" # !?????###???????????????????? | | ?#! """ "% # ???????????????????????????? | | ?# ""=!# """""" ?????????????????????????? | | ?# """ =% # """""" #????????????????????????? | | ?# """ = # """""" #????????????????????????? | | ?# """ # """""" #????????????????????????? | | ?# # #????????????????????????? | +----------------------------------------------------+ Best States ------------- Heat Dissipation 62 Energy Generation 18 Energy Capacity 290 Matter Stores 300 Matter Capacity 300 Sight Range 20 Terrain Scan Density 10 Armor Coverage 225 Evasion (%) 40 Targeting Accuracy 8 Recoil Reduction 4 Item Schematics ----------------- Huge Storage Unit | -10/Materials | Hacked Hcp. Storage Unit | -10/Materials | Hacked Lrg. Storage Unit | -9/Materials | Hacked Robot Schematics ------------------ None Fabricated ------------ Nothing Alien Tech Used ----------------- None Achievements -------------- None Challenges ------------ None Game ------ Seed ForceChainPick Manual? 0 Play Time 01:08:15 Cumulative 319.0 hours Start 2022.04.09 @ 21:23:34 End 2022.04.10 @ 00:16:09 Sessions 1 Manual Loads 0 Difficulty Rogue Special Mode None Game No. 472 Rogue 472 Adventurer 0 Explorer 0 Win Type - Total 5 Types 3/0/1/1/0/0/0/0/0 Lore% 79 Gallery% 81 Achievement% 64 Wizard Run 0 Options --------- ASCII 0 Keyboard 1 Movement Numpad Keybinds 0 Fullscreen 2 Font 24/Smallcaps Map View 76x50 Tactical HUD 1 Map Filters NONE Filters NONE Steam 1 RUN: abf5ed34-ebc7-45cd-aad2-0bc858b9a53e